bitfinex/quotes_ETHUSD_20241204
["timestamp","ask_amount","ask_price","bid_price","bid_amount"]
[1733346137432,0.55,3890.2,3887.5,0.2]
[1733346137627,3.55,3889.9,3887.5,0.2]
[1733346137835,0.55,3889.9,3887.5,0.2]
[1733346138142,0.55,3889.9,3885.3,0.1]
[1733346138143,3.55,3889.7,3886.7,1.5786]
[1733346138295,0.55,3889.5,3886.8,0.2]
[1733346138489,2.96497356,3890.6,3886.7,1.6786]
[1733346138490,0.55,3889.3,3886.7,1.5786]
[1733346138717,0.55,3889.1,3886.7,1.5786]
[1733346138976,0.55,3888.9,3886.7,1.76646]
[1733346139270,0.55,3889.3,3887.1,0.2]
[1733346139572,0.55,3889.7,3886.9,0.2]
[1733346139857,3.0,3889.8,3886.7,1.7786]
[1733346139858,1.02495886,3889.6,3886.7,1.7786]
[1733346140057,0.47495886,3889.5,3887.3,0.2]
[1733346140258,0.47495886,3889.4,3887.3,0.2]
[1733346140558,3.0,3890.1,3887.6,0.2]
[1733346140559,0.23747943,3889.3,3887.6,0.2]
[1733346140764,2.57023,3890.7,3887.1,0.1]
[1733346140765,0.23747943,3889.8,3887.1,0.3]
[1733346140965,0.47515096,3889.7,3886.9,0.2]
[1733346141263,3.0,3889.2,3886.7,1.5786]
[1733346141462,5.0,3891.4,3886.7,1.5786]
[1733346141463,0.63436075,3889.6,3887.4,0.2]
[1733346141625,0.41125014,3891.7,3886.7,1.5786]
[1733346141626,0.47574456,3889.5,3887.2,0.2]
[1733346141828,0.23788528,3889.4,3887.4,0.2]
[1733346142163,0.23788528,3889.3,3887.6,0.2]
[1733346142350,0.39647547,3890.5,3887.7,1.5543]
[1733346142528,0.85666592,3890.4,3887.9,0.2]
[1733346142722,0.47609106,3890.3,3887.9,0.2]
[1733346142923,0.47609106,3890.2,3887.9,0.2]
[1733346143123,2.56988,3891.3,3887.7,1.5543]
[1733346143124,0.47609106,3890.1,3887.7,1.5543]
[1733346143428,0.47609106,3890.1,3885.5,0.43595]
[1733346143429,3.0,3889.6,3887.1,1.559]
[1733346143757,3.0,3889.2,3886.5,1.559]
[1733346143961,1.02609106,3889.1,3886.5,1.559]
[1733346144165,0.47609106,3889.0,3886.9,0.2]
[1733346144382,0.47609106,3888.9,3886.9,0.2]
[1733346144527,0.23804553,3888.8,3886.9,0.2]
[1733346144730,0.23804553,3888.7,3886.9,0.2]
[1733346144932,0.23804553,3888.6,3886.9,0.2]
[1733346145122,0.23843735,3888.5,3887.4,0.2]
[1733346145340,0.5420165,3889.2,3887.5,1.5491]
[1733346145661,3.0,3890.0,3887.5,1.5491]
[1733346145662,0.47727942,3889.1,3887.5,1.5491]
[1733346145959,0.47727942,3889.1,3886.8,0.1]
[1733346145960,1.01960106,3889.0,3886.7,1.5174]
[1733346146162,1.79792955,3888.9,3888.0,0.2]
[1733346146371,0.71531148,3891.4,3888.0,0.2]
[1733346146372,0.620459,3888.8,3888.4,0.2]
[1733346146611,0.16050235,3890.3,3888.7,1.5174]
[1733346146818,0.52437764,3892.0,3888.7,1.5174]
[1733346146819,0.23870464,3890.2,3889.1,0.2]
[1733346147113,2.56936,3892.1,3888.2,0.15174]
[1733346147114,0.23868908,3890.1,3888.4,0.2]
[1733346147405,0.47751275,3890.0,3888.4,0.2]
[1733346147621,0.23868908,3889.9,3888.4,0.2]
[1733346147910,0.23883625,3889.8,3888.4,0.2]
[1733346148078,0.54259722,3890.4,3888.6,0.2]
[1733346148281,0.39806043,3890.7,3888.6,0.2]
[1733346148282,0.86008604,3890.3,3888.6,0.2]
[1733346148594,0.86008604,3890.2,3888.6,0.2]
[1733346148770,0.86008604,3890.1,3888.6,0.2]
[1733346148967,0.86008604,3890.0,3888.6,0.2]
[1733346149194,0.39739305,3890.9,3888.1,1.6682]
[1733346149195,0.23890215,3889.9,3888.1,1.5682]
[1733346149405,1.40297059,3889.8,3888.1,1.5682]
[1733346149592,0.86014693,3889.7,3888.1,1.5682]
[1733346149909,0.86014693,3889.6,3888.1,1.5682]
[1733346150066,0.86014693,3889.5,3888.1,1.5682]
[1733346150290,0.39806043,3890.0,3888.1,1.5682]
[1733346150291,1.1437,3889.3,3888.1,0.42444072]
[1733346150527,0.23890215,3889.2,3888.1,0.42444072]
[1733346150825,0.23890215,3889.1,3887.3,0.2]
[1733346150993,0.86035872,3889.0,3887.3,0.2]
[1733346151200,1.1437,3889.3,3887.8,0.2]
[1733346151201,0.62147681,3888.9,3887.8,0.2]
[1733346151381,1.1437,3889.3,3887.6,0.2]
[1733346151580,1.1437,3889.3,3886.7,0.34039629]
[1733346151581,0.23902551,3889.2,3887.8,0.3]
[1733346151792,0.23902551,3889.1,3887.8,0.3]
[1733346151997,1.1437,3889.3,3888.1,0.2]
[1733346152215,0.39838258,3890.1,3888.1,0.2]
[1733346152216,0.2390214,3889.2,3888.1,0.2]
[1733346152421,0.54294934,3889.8,3888.1,0.2]
[1733346152619,0.8605699,3889.7,3888.1,0.2]
[1733346152818,1.1437,3889.9,3888.1,0.2]
[1733346152819,0.8605699,3889.6,3888.1,0.2]
[1733346153023,0.8605699,3889.5,3888.1,0.2]
[1733346153337,0.62160668,3889.4,3887.9,1.6338]
[1733346153631,0.23904637,3889.3,3888.5,0.2]
[1733346153784,1.1437,3889.9,3888.3,0.3]
[1733346154124,0.23907206,3889.8,3888.6,1.5484]
[1733346154290,0.23907206,3889.7,3888.6,1.5484]
[1733346154485,1.1437,3889.9,3888.6,1.5484]
[1733346154486,0.23908375,3889.6,3888.6,1.93324]
[1733346154690,3.62892284,3891.7,3888.6,1.93324]
[1733346154691,1.1437,3890.3,3888.8,0.2]
[1733346154887,0.8606785,3890.2,3889.1,0.2]
[1733346155107,0.23907724,3890.1,3889.1,0.2]
[1733346155399,0.23907724,3890.0,3889.1,0.2]
[1733346155742,0.39847293,3890.8,3888.6,1.73324]
[1733346155743,0.38246211,3890.7,3889.3,0.2]
[1733346155916,0.23902643,3890.6,3889.4,1.6091]
[1733346156226,0.23902643,3890.5,3889.4,1.6091]
[1733346156433,0.23902643,3890.4,3889.4,1.6091]
[1733346156722,0.23902643,3890.3,3889.4,1.6091]
[1733346156923,0.23902643,3890.2,3889.4,1.6091]
[1733346157123,0.38247844,3890.7,3889.4,1.6091]
[1733346157332,0.86048388,3890.6,3889.4,1.6091]
[1733346157527,0.86048388,3890.6,3887.1,0.2]
[1733346157528,0.86048388,3890.5,3888.8,1.6091]
[1733346157757,0.78199505,3890.4,3889.2,0.2]
[1733346157902,1.1437,3890.8,3889.4,0.2]
[1733346158110,1.1437,3891.4,3889.8,1.6091]
[1733346158304,0.23901822,3890.7,3889.8,1.6091]
[1733346158507,1.1437,3891.4,3889.8,1.6091]
[1733346158755,1.40314566,3891.3,3889.8,1.6091]
[1733346159041,0.86035667,3891.2,3889.8,1.6091]
[1733346159253,0.86035667,3891.1,3890.0,0.2]
[1733346159405,1.1437,3891.4,3890.0,0.2]
[1733346159606,0.23894575,3891.3,3890.0,0.2]
[1733346159839,0.23894575,3891.2,3890.0,0.2]
[1733346160051,0.23894575,3891.1,3890.5,0.2]
[1733346160203,1.1437,3892.0,3890.6,1.6091]
[1733346160554,0.8597896,3891.9,3890.6,1.6091]
[1733346160841,0.8597896,3891.8,3890.6,1.6091]
[1733346161043,0.47766163,3891.7,3890.6,1.6091]
[1733346161344,0.23882998,3891.6,3890.6,1.6091]
[1733346161734,1.1437,3892.0,3890.0,1.8091]
[1733346161931,0.62074187,3891.9,3890.0,1.6091]
[1733346162242,1.40190034,3891.8,3890.0,1.8091]
[1733346162428,0.85951656,3891.7,3890.0,2.00001]
[1733346162633,0.85951656,3891.6,3890.0,2.00001]
[1733346162819,0.47750444,3891.5,3890.2,0.2]
[1733346163147,1.1437,3892.0,3890.5,0.1]
[1733346163317,1.1437,3892.0,3890.0,1.6091]
[1733346163318,1.24109733,3891.9,3890.0,1.6091]
[1733346163640,1.40149505,3891.8,3890.0,1.6091]
[1733346163805,1.40149505,3891.7,3890.0,1.6091]
[1733346164008,1.54162929,3892.0,3890.0,1.6091]
[1733346164009,1.40149505,3891.6,3890.0,1.6091]
[1733346164215,1.1437,3892.0,3889.3,0.1]
[1733346164216,2.00292464,3891.5,3889.4,1.5242]
[1733346164421,2.00292464,3891.5,3889.8,0.1]
[1733346164422,0.62055113,3891.4,3889.8,0.1]
[1733346164617,1.1437,3891.5,3889.8,0.1]
[1733346164838,0.23866819,3891.4,3889.8,0.1]
[1733346165006,1.1437,3891.5,3889.8,0.1]
[1733346165232,0.23865714,3891.4,3889.8,0.1]
[1733346165439,1.1437,3891.5,3889.8,0.1]
[1733346165649,0.23865423,3891.4,3889.8,0.1]
[1733346165848,1.1437,3891.5,3889.8,0.1]
[1733346166047,0.23864883,3891.4,3889.8,0.1]
[1733346166281,1.1437,3891.5,3889.7,0.2]
[1733346166475,0.85911373,3891.4,3889.4,1.5242]
[1733346166668,1.1437,3891.2,3888.7,1.6322]
[1733346166871,1.1437,3891.0,3888.7,1.6322]
[1733346167042,3.0,3890.6,3887.9,1.6322]
[1733346167243,1.1437,3890.4,3888.0,0.19322]
[1733346167552,1.1437,3890.2,3888.0,0.19322]
[1733346167754,3.16039772,3890.4,3886.9,0.34619574]
[1733346167755,1.1437,3890.0,3887.3,1.7447]
[1733346167975,1.1437,3889.8,3887.3,1.7447]
[1733346168161,0.23876094,3889.7,3887.3,1.7447]
[1733346168361,0.23876094,3889.7,3886.8,0.1]
[1733346168362,2.0337,3889.5,3886.3,1.5145]
[1733346168688,2.0337,3889.5,3885.3,0.1]
[1733346168689,2.57202,3888.0,3884.9,1.5145]
[1733346168844,1.1437,3887.8,3885.0,0.17145]
[1733346169040,4.1437,3887.3,3885.0,0.17145]
[1733346169243,1.1437,3887.1,3884.5,0.2]
[1733346169488,0.23876094,3887.0,3885.6,1.7958]
[1733346169685,1.1437,3887.1,3885.7,0.18958]
[1733346169983,0.238628,3887.0,3885.7,0.18958]
[1733346170192,1.1437,3887.1,3885.7,0.18958]
[1733346170678,1.1437,3887.1,3885.6,1.5958]
[1733346170855,1.1437,3887.1,3885.0,1.6009]
[1733346171058,0.23846361,3887.0,3884.3,1.6009]
[1733346171279,0.23846361,3887.0,3885.5,0.2]
[1733346171442,1.54113935,3887.6,3885.3,1.6009]
[1733346171443,1.1437,3887.6,3886.1,0.2]
[1733346171639,1.3818484,3888.5,3886.2,1.7647]
[1733346171880,1.121843,3888.5,3886.4,0.3]
[1733346172064,1.121843,3888.5,3886.2,1.6647]
[1733346172065,1.121843,3888.5,3886.9,0.2]
[1733346173181,0.31017953,3888.8,3885.5,1.5458]
[1733346173365,2.57213,3887.9,3884.7,1.5458]
[1733346173687,3.47604537,3887.8,3884.8,0.27458]
[1733346173892,0.47604537,3887.7,3884.9,0.2]
[1733346174198,1.068091,3888.2,3884.9,0.2]
[1733346174199,3.41721081,3887.9,3884.9,0.2]
[1733346174365,0.47583164,3887.8,3884.9,0.2]
[1733346174683,0.89328905,3888.2,3885.2,0.3]
[1733346174892,1.1219,3888.0,3885.2,0.3]
[1733346175051,1.1219,3888.0,3884.7,1.6458]
[1733346175251,1.1219,3887.8,3884.7,1.5458]
[1733346175485,1.35981582,3887.7,3884.8,0.18458]
[1733346175697,1.1219,3887.7,3884.8,0.18458]
[1733346175868,1.1219,3887.7,3885.0,0.2]
[1733346176066,1.1219,3887.7,3885.2,0.3]
[1733346176383,1.53109621,3887.7,3885.3,1.5329]
[1733346176753,1.53109621,3887.7,3885.5,0.2]
[1733346177190,1.53109621,3887.7,3885.7,0.2]
[1733346177395,1.53109621,3887.7,3885.9,1.5329]
[1733346178867,1.53109621,3887.7,3885.3,1.79499]
[1733346179257,1.1219,3887.6,3885.3,1.6117]
[1733346180095,1.1219,3887.5,3885.3,1.6117]
[1733346180260,1.59687313,3887.5,3884.6,0.2]
[1733346180593,3.0,3887.7,3884.5,1.5633]
[1733346180594,1.1219,3887.3,3884.5,1.5633]
[1733346180806,1.1219,3887.5,3884.5,1.5633]
[1733346180963,1.1219,3886.9,3884.5,1.5633]
[1733346181155,4.1219,3886.8,3884.5,1.5633]
[1733346181359,1.1219,3886.6,3884.5,1.5633]
[1733346182360,1.1219,3886.6,3884.6,0.15633]
[1733346182557,1.52349589,3886.6,3884.5,1.5633]
[1733346182793,1.1219,3886.5,3883.6,1.5986]
[1733346183101,3.69491,3886.5,3883.6,1.5986]
[1733346183258,1.1219,3886.4,3883.6,1.5986]
[1733346184203,3.0,3886.4,3883.6,1.5986]
[1733346184365,1.1219,3885.7,3883.6,1.5986]
[1733346185896,1.53274452,3885.7,3883.6,1.99870733]
[1733346186100,1.53274452,3885.7,3883.6,1.79870733]
[1733346187000,1.1219,3885.6,3883.6,1.5986]
[1733346187917,1.1219,3885.6,3883.6,1.6986]
[1733346189104,1.1219,3885.6,3883.6,1.5986]
[1733346189277,1.1219,3885.6,3883.4,0.40247325]
[1733346189480,3.0,3885.3,3883.4,0.40247325]
[1733346189674,0.41084452,3885.7,3883.4,0.40247325]
[1733346189675,3.69558,3885.5,3883.4,0.40247325]
[1733346189900,5.81007168,3885.4,3883.4,0.40247325]
[1733346190084,3.0,3885.1,3883.4,0.40247325]
[1733346190301,1.1219,3885.0,3883.4,0.40247325]
[1733346190497,2.57401,3885.0,3883.4,0.40247325]
[1733346190699,0.23642077,3884.9,3882.7,1.6019]
[1733346190878,1.1219,3884.8,3882.7,1.6019]
[1733346191077,1.1219,3884.8,3883.2,0.40277327]
[1733346192126,1.1219,3884.8,3883.3,1.5161]
[1733346192302,1.1219,3885.4,3883.4,0.19188733]
[1733346192505,0.41847614,3885.5,3883.7,1.5161]
[1733346192709,1.1219,3885.9,3883.8,1.5161]
[1733346192878,1.52715072,3885.9,3883.2,0.40277327]
[1733346193083,1.35844428,3885.8,3883.2,0.40277327]
[1733346193403,1.35884005,3885.8,3883.2,0.40277327]
[1733346193602,0.23694008,3885.7,3883.2,0.40277327]
[1733346193803,0.23694008,3885.6,3883.2,0.40277327]
[1733346193990,0.23694008,3885.5,3883.3,1.74658733]
[1733346194191,0.23694008,3885.4,3883.3,1.74658733]
[1733346194404,0.23694008,3885.3,3883.3,1.74658733]
[1733346194586,0.23694008,3885.2,3883.3,1.74658733]
[1733346194781,0.23694008,3885.1,3883.5,0.1]
[1733346194981,1.35884005,3885.8,3883.5,0.1]
[1733346194982,0.23694008,3885.6,3883.7,1.5547]
[1733346195236,0.23694008,3885.5,3883.7,1.5547]
[1733346195458,0.61604418,3885.7,3883.7,1.6547]
[1733346195459,0.23694008,3885.4,3883.7,1.6547]
[1733346195664,1.73794418,3885.8,3883.7,1.6547]
[1733346195821,0.23754183,3885.7,3883.8,0.2]
[1733346196147,0.23754183,3885.7,3883.8,1.5547]
[1733346196148,0.85358601,3885.6,3883.8,1.5547]
[1733346196367,1.78828006,3885.5,3883.8,1.5547]
[1733346196655,2.96879839,3885.2,3883.3,1.5547]
[1733346196959,0.61903286,3885.1,3883.3,1.5547]
[1733346197237,1.51873649,3884.9,3883.3,1.5547]
[1733346197438,0.39683649,3884.6,3883.2,0.40277327]
[1733346197650,1.51873649,3884.3,3882.3,1.5547]
[1733346197831,1.79565941,3884.2,3882.3,1.5547]
[1733346198032,4.79565941,3884.1,3882.6,0.40278525]
[1733346198237,1.39882292,3884.0,3882.6,0.40278525]
[1733346198405,1.39882292,3883.9,3882.6,0.40278525]
[1733346198607,1.39882292,3883.8,3882.6,0.40278525]
[1733346198829,0.39683649,3884.1,3882.6,0.40278525]
[1733346198830,0.85716681,3883.7,3882.6,0.40278525]
[1733346199010,0.85716681,3883.6,3882.6,0.40278525]
[1733346199207,0.85716681,3883.5,3882.6,0.40278525]
[1733346199555,0.23810189,3883.4,3882.6,0.40278525]
[1733346199703,0.23810189,3883.3,3882.6,0.40278525]
[1733346199902,0.38158979,3883.7,3882.6,0.40278525]
[1733346200109,0.47698294,3883.6,3882.6,0.59853378]
[1733346200336,5.334139,3884.3,3882.6,0.59853378]
[1733346200337,0.381604,3883.9,3882.7,1.5692]
[1733346200539,0.47694418,3883.8,3882.7,1.5692]
[1733346200718,0.47694418,3883.7,3882.7,1.5692]
[1733346200920,0.23847209,3883.6,3882.7,1.5692]
[1733346201127,0.38155246,3884.1,3882.7,1.5692]
[1733346201322,1.23997881,3884.0,3882.7,1.5692]
[1733346201659,0.85844669,3883.9,3882.7,1.5692]
[1733346201809,0.23845735,3883.8,3882.7,1.5692]
[1733346202007,0.23841625,3883.7,3882.7,1.5692]
[1733346202245,0.23859625,3883.6,3882.7,1.5692]
[1733346202554,0.38146567,3884.1,3882.7,1.5692]
[1733346202755,1.24042308,3884.0,3882.7,1.87639853]
[1733346202956,0.47718189,3883.9,3882.7,1.87639853]
[1733346203161,0.23858261,3883.9,3883.2,1.5263]
[1733346203309,0.38172239,3884.5,3883.2,1.5263]
[1733346203516,0.47766058,3884.4,3883.2,1.5263]
[1733346203765,0.3821175,3885.0,3883.4,1.6615]
[1733346204064,0.85972053,3884.9,3883.8,1.6615]
[1733346204244,0.47762201,3884.8,3883.8,1.6615]
[1733346204559,0.23881158,3884.7,3883.8,1.6615]
[1733346204761,0.23881043,3885.4,3883.8,1.6615]
[1733346204911,0.62106874,3885.3,3883.8,1.6615]
[1733346205117,0.86005403,3885.2,3883.8,1.6615]
[1733346205361,0.86005403,3885.1,3883.8,1.6615]
[1733346205564,0.86005403,3885.0,3883.8,1.7615]
[1733346205726,0.86005403,3884.9,3883.8,1.7615]
[1733346205925,3.0,3885.9,3883.8,1.7615]
[1733346205926,0.62106874,3884.8,3883.8,1.6615]
[1733346206141,0.62106874,3884.7,3883.8,1.6615]
[1733346206376,3.0,3885.9,3883.8,1.6615]
[1733346206377,1.1219,3885.0,3883.8,1.6615]
[1733346206520,3.86088028,3884.9,3883.8,1.6615]
[1733346206723,0.38266572,3884.9,3883.8,1.6615]
[1733346206927,0.86099598,3884.8,3883.8,1.6615]
[1733346207128,0.86099598,3884.7,3883.8,1.6615]
[1733346207327,0.86099598,3884.6,3883.8,1.6615]
[1733346207574,0.62183043,3884.5,3883.8,1.6615]
[1733346207864,0.62183043,3884.4,3883.8,1.6615]
[1733346208077,0.23916555,3884.3,3883.8,1.6615]
[1733346208258,0.62262446,3884.2,3883.8,1.6615]
[1733346208562,0.86233854,3884.1,3883.3,1.5067]
[1733346208736,0.39860925,3884.5,3882.6,0.40278525]
[1733346208737,0.86233854,3884.0,3882.6,0.40278525]
[1733346208943,0.39860925,3883.8,3882.6,0.40278525]
[1733346209134,0.39860925,3883.5,3882.6,0.40278525]
[1733346209329,0.62262446,3883.4,3883.0,0.1]
[1733346209532,0.23916555,3883.3,3883.1,1.5765]
[1733346209761,0.23916555,3883.2,3883.1,1.5765]
[1733346211060,0.62307001,3883.2,3883.1,1.5765]
[1733346211553,0.78378321,3883.2,3883.1,1.5765]
[1733346211744,0.23916555,3883.2,3883.1,1.86415]
[1733346211944,0.23998278,3883.2,3883.1,1.5765]
[1733346212688,0.39860925,3884.2,3883.1,1.6765]
[1733346212986,1.02482102,3884.1,3883.2,0.1]
[1733346213188,0.78479025,3884.0,3883.2,0.1]
[1733346213341,1.02483153,3883.9,3883.2,0.1]
[1733346213546,1.02483153,3883.8,3883.5,0.1]
[1733346213827,0.24004128,3883.7,3883.6,1.5464]
[1733346214978,0.24004128,3883.7,3883.0,0.1]
[1733346215316,0.78419296,3884.5,3878.8,1.5897]
[1733346215317,0.2,3880.0,3878.8,1.5897]
[1733346215625,0.1,3881.4,3878.8,1.5897]
[1733346215626,0.2,3879.4,3878.8,1.5897]
[1733346215910,0.2,3880.1,3878.8,1.5897]
[1733346216072,1.25316441,3880.0,3878.8,1.5897]
[1733346216276,1.25316441,3880.0,3874.5,0.01845415]
[1733346216277,4.068091,3879.3,3876.8,0.02578479]
[1733346216466,0.40029442,3878.4,3876.8,0.02578479]
[1733346216683,0.40029442,3878.4,3876.4,0.1635462]
[1733346216684,0.02778785,3878.3,3876.4,0.1635462]
[1733346216905,0.63858231,3878.2,3876.4,0.1635462]
[1733346217087,0.39914896,3877.7,3876.4,0.1635462]
[1733346217289,0.39914896,3877.4,3876.4,0.1635462]
[1733346217498,0.39914896,3877.2,3876.4,0.1635462]
[1733346217806,0.2,3878.4,3876.4,0.1635462]
[1733346217807,0.39914896,3876.8,3876.4,0.1635462]
[1733346217967,0.39914896,3876.5,3876.4,0.1635462]
[1733346218159,2.30848224,3876.5,3873.7,0.1]
[1733346218459,0.39822828,3876.0,3873.7,0.1]
[1733346218648,0.2,3876.9,3873.7,0.1]
[1733346218649,0.39822828,3875.9,3873.8,0.02580515]
[1733346218852,0.39822828,3875.6,3873.7,0.1]
[1733346219150,4.068091,3877.2,3873.7,0.1]
[1733346219151,1.04631011,3875.5,3873.7,0.1]
[1733346219385,1.17617751,3875.5,3875.4,2.3606]
[1733346219684,0.78028988,3875.5,3875.4,2.3606]
[1733346220093,1.17616821,3875.5,3875.4,2.3606]
[1733346220464,0.02778785,3876.6,3875.4,2.3606]
[1733346220786,0.61605462,3876.5,3875.4,2.3606]
[1733346221095,0.39910363,3877.5,3875.5,1.56330392]
[1733346221275,0.61595358,3877.4,3875.5,1.5375]
[1733346221599,0.02778785,3877.4,3875.5,1.5375]
[1733346222447,0.64208782,3877.9,3875.5,1.5375]
[1733346222691,0.02778785,3877.9,3875.7,1.6458]
[1733346222898,0.2362761,3877.8,3875.7,1.6458]
[1733346223053,0.22778785,3877.9,3875.7,1.6458]
[1733346223054,0.26406395,3877.7,3875.7,1.6458]
[1733346223253,0.02778785,3877.7,3875.7,1.6458]
[1733346224102,0.02778785,3878.0,3875.7,1.6458]
[1733346224299,0.02778785,3878.0,3875.9,1.611]
[1733346225782,0.02778785,3878.0,3875.8,0.4998156]
[1733346225783,0.02778785,3878.7,3876.5,1.611]
[1733346225982,0.02778785,3878.7,3876.6,0.55]
[1733346226149,0.2356811,3879.1,3876.9,1.611]
[1733346226406,0.2,3879.3,3877.0,0.02578975]
[1733346226555,0.2,3879.3,3877.1,1.611]
[1733346226907,0.22778785,3879.3,3877.1,1.611]
[1733346227253,0.23566034,3879.2,3877.1,1.611]
[1733346227454,0.22778785,3879.3,3877.1,1.611]
[1733346227455,0.02778785,3879.1,3877.1,1.611]
[1733346227867,0.40483434,3879.9,3877.3,1.6259]
[1733346228075,0.23561469,3879.8,3877.7,1.6259]
[1733346228304,0.40473825,3880.4,3877.8,1.6259]
[1733346228607,0.40473825,3880.4,3876.8,0.38503198]
[1733346228608,0.23564164,3880.3,3878.3,1.6259]
[1733346228764,0.2,3880.6,3878.3,1.6259]
[1733346229107,0.23554452,3880.5,3878.7,1.5531]
[1733346229311,0.3108137,3880.8,3878.6,0.55]
[1733346229312,0.33860155,3880.8,3878.9,1.5531]
[1733346229462,0.3108137,3880.8,3878.9,1.5531]
[1733346229662,0.02778785,3880.7,3878.9,1.5531]
[1733346229973,0.2,3880.0,3878.9,1.5531]
[1733346230172,0.02778785,3879.9,3878.9,1.5531]
[1733346230617,0.02778785,3879.9,3878.4,1.5937]
[1733346230618,0.2,3879.6,3878.4,1.5937]
[1733346230760,0.23564617,3879.8,3878.4,1.5937]
[1733346230761,0.2,3879.2,3878.4,1.5937]
[1733346230964,0.02778785,3879.1,3878.4,1.5937]
[1733346231164,0.02778785,3879.1,3877.6,0.03970331]
[1733346231601,0.17778785,3879.2,3877.6,0.03970331]
[1733346231907,0.16090425,3880.3,3877.6,0.03970331]
[1733346231908,0.17778785,3878.8,3877.6,0.03970331]
[1733346232217,0.17778785,3878.4,3877.6,0.03970331]
[1733346232510,0.55,3878.8,3877.6,0.03970331]
[1733346232801,1.5623,3879.3,3877.6,0.03970331]
[1733346232802,0.17778785,3879.6,3877.6,0.03970331]
[1733346233011,0.17778785,3879.1,3877.6,0.03970331]
[1733346233213,0.17778785,3879.6,3877.6,0.03970331]
[1733346233367,0.6129075,3879.5,3877.6,0.03970331]
[1733346233571,0.23573365,3879.4,3877.6,0.03970331]
[1733346233770,0.17778785,3879.6,3877.6,0.03970331]
[1733346233771,0.23573365,3879.3,3877.6,0.03970331]
[1733346234081,0.41354601,3879.2,3877.6,0.03970331]
[1733346234279,0.23575816,3879.1,3877.7,1.5043]
[1733346234513,0.23575816,3879.0,3877.7,1.5043]
[1733346234678,0.23575816,3878.9,3877.7,1.5043]
[1733346234873,3.0,3879.7,3877.7,1.5043]
[1733346234874,0.17778785,3878.7,3877.7,1.5043]
[1733346235382,0.61374994,3878.6,3875.5,0.12579176]
[1733346235695,0.17778785,3878.3,3875.1,0.1]
[1733346235897,0.23594553,3878.2,3875.4,0.85]
[1733346236070,0.17778785,3878.3,3875.4,0.85]
[1733346236071,0.17778785,3878.3,3875.4,0.75]
[1733346236382,1.5112,3878.5,3875.4,0.75]
[1733346236383,0.17778785,3877.8,3875.4,0.75]
[1733346236591,0.23614023,3877.7,3875.7,3.0]
[1733346236771,0.23614023,3877.6,3875.4,0.75]
[1733346236971,0.17778785,3877.8,3875.4,0.75]
[1733346237190,0.23627991,3877.7,3875.4,0.75]
[1733346237471,0.23646216,3877.6,3875.5,0.55]
[1733346237677,0.37833487,3878.2,3875.5,0.55]
[1733346237876,0.61479796,3878.1,3875.7,0.55]
[1733346238108,0.17778785,3878.3,3875.7,0.55]
[1733346238109,0.61479796,3878.0,3875.7,0.55]
[1733346238310,0.61479796,3877.9,3875.7,0.55]
[1733346238511,0.17778785,3878.3,3875.7,0.55]
[1733346238512,0.61479796,3877.8,3875.8,1.5844]
[1733346238676,0.61516708,3877.7,3875.8,1.5844]
[1733346238878,0.23646309,3877.6,3875.8,1.5844]
[1733346239117,0.23646309,3877.5,3875.9,0.17144]
[1733346239286,0.23669318,3877.4,3875.9,0.17144]
[1733346239488,0.23669318,3877.4,3876.0,0.175584]
[1733346239706,0.23669318,3877.3,3876.0,0.175584]
[1733346239877,0.17778785,3877.9,3876.0,0.175584]
[1733346240078,0.61582921,3877.8,3876.0,0.175584]
[1733346240282,0.61582921,3877.7,3876.0,0.175584]
[1733346240498,0.61582921,3877.6,3876.0,0.175584]
[1733346240698,1.5588,3877.4,3875.4,0.75]
[1733346240900,0.17778785,3876.9,3875.4,0.75]
[1733346241105,0.77682571,3876.8,3875.4,0.75]
[1733346241298,0.95461952,3876.7,3875.4,0.75]
[1733346241499,0.7782145,3876.6,3875.4,0.75]
[1733346241763,0.61720786,3876.5,3875.4,0.75]
[1733346241914,1.5588,3877.4,3875.5,1.5767]
[1733346242244,0.77805135,3877.3,3875.5,1.5767]
[1733346242448,0.77803507,3877.2,3875.5,1.5767]
[1733346242607,0.61707847,3877.1,3875.6,0.23267]
[1733346242807,0.23733787,3877.0,3875.6,0.23267]
[1733346243041,0.17778785,3877.8,3875.5,1.5767]
[1733346243042,0.23770331,3876.9,3875.5,1.5767]
[1733346243212,0.61807589,3876.8,3875.5,1.5767]
[1733346243413,0.61943261,3876.7,3875.5,1.5767]
[1733346243630,0.17778785,3877.7,3875.5,1.5767]
[1733346243631,0.23824331,3876.6,3875.5,1.5767]
[1733346243807,0.23824331,3876.5,3875.5,1.5767]
[1733346244004,0.23824331,3876.4,3875.5,1.5767]
[1733346244200,0.23825295,3876.3,3875.5,1.5767]
[1733346244435,0.17778785,3876.9,3875.5,1.5767]
[1733346244436,0.78180069,3876.2,3875.5,1.5767]
[1733346244741,0.62081654,3876.1,3875.5,1.5767]
[1733346244948,0.62081654,3876.0,3875.5,1.5767]
[1733346245133,0.17778785,3877.1,3875.5,1.5767]
[1733346245333,0.39849631,3876.7,3875.5,1.5767]
[1733346245681,0.39849631,3876.3,3875.5,1.5767]
[1733346245880,0.78262524,3876.2,3875.5,1.5767]
[1733346246053,3.0,3877.3,3875.5,1.5767]
[1733346246054,0.17778785,3876.8,3875.5,1.5767]
[1733346246380,0.17778785,3876.9,3875.5,1.5767]
[1733346246785,0.1627,3877.3,3875.5,1.5767]
[1733346246786,0.34048785,3877.3,3875.5,1.5767]
[1733346247331,0.39937711,3876.8,3875.5,1.5767]
[1733346247536,1.18338061,3876.7,3875.5,1.5767]
[1733346247736,0.39937711,3876.4,3875.5,1.5767]
[1733346247973,0.39937711,3876.4,3875.4,0.75]
[1733346247974,0.39937711,3876.1,3875.4,0.75]
[1733346248136,0.39937711,3875.8,3875.4,0.75]
[1733346248332,0.7840035,3875.7,3875.4,0.75]